fUST/lending_fUST_20250512
["ID","MTS","AMOUNT","RATE_DAILY","PERIOD"]
[360834862,1747059033345,-800.0,0.00014761,2]
[360834863,1747059033355,-800.0,0.00014768,2]
[360834864,1747059033364,-800.0,0.00014773,2]
[360834865,1747059033374,-434.16914288,0.00014773,2]
[360834866,1747059033384,-434.16914287,0.00014779,2]
[360834867,1747059033394,-800.0,0.00014781,2]
[360834868,1747059033404,-800.0,0.00014783,2]
[360834869,1747059033418,-434.16914287,0.00014785,2]
[360834870,1747059033428,-434.16914287,0.00014791,2]
[360834871,1747059033438,-434.16914287,0.00014797,2]
[360834872,1747059033452,-6145.51559688,0.00014798,2]
[360834873,1747059033462,-800.0,0.00014813,2]
[360834874,1747059033471,-800.0,0.00014816,2]
[360834875,1747059033481,-800.0,0.00014819,2]
[360834876,1747059033492,-2751.5430542,0.00014823,2]
[360834877,1747059033502,-800.0,0.00014826,2]
[360834878,1747059033511,-151.0,0.00014827,2]
[360834879,1747059033521,-151.0,0.00014827,2]
[360834880,1747059033530,-800.0,0.00014828,2]
[360834881,1747059033620,-800.0,0.00014834,2]
[360834882,1747059033641,-800.0,0.00014836,2]
[360834883,1747059033651,-800.0,0.00014839,2]
[360834884,1747059033661,-166.0,0.00014848,2]
[360834885,1747059033670,-151.0,0.00014848,2]
[360834886,1747059033680,-170.39940807,0.00014848,2]
[360834887,1747059033689,-166.0,0.00014848,2]
[360834888,1747059033702,-276.6441461,0.00014848,2]
[360834889,1747059033712,-166.0,0.00014848,2]
[360834890,1747059033722,-204.75272929,0.00014848,2]
[360834891,1747059033732,-320.0,0.00014848,2]
[360834892,1747059033741,-320.0,0.00014848,2]
[360834893,1747059033752,-320.0,0.00014848,2]
[360834894,1747059033762,-320.0,0.00014848,2]
[360834895,1747059033772,-320.0,0.00014848,2]
[360834896,1747059033781,-320.0,0.00014848,2]
[360834897,1747059033791,-320.0,0.00014848,2]
[360834898,1747059033800,-320.0,0.00014848,2]
[360834899,1747059033810,-320.0,0.00014848,2]
[360834900,1747059033819,-800.0,0.00014863,2]
[360834901,1747059033829,-800.0,0.00014866,2]
[360834902,1747059033839,-800.0,0.0001487,2]
[360834903,1747059033849,-800.0,0.00014872,2]
[360834904,1747059033858,-500.0,0.00014873,2]
[360834905,1747059033867,-500.0,0.00014873,2]
[360834906,1747059033877,-500.0,0.00014873,2]
[360834907,1747059033887,-500.0,0.00014873,2]
[360834908,1747059033896,-500.0,0.00014873,2]
[360834909,1747059033906,-508.53272994,0.00014873,2]
[360834910,1747059033916,-500.0,0.00014873,2]
[360834911,1747059033925,-500.0,0.00014873,2]
[360834912,1747059033935,-500.0,0.00014873,2]
[360834913,1747059033947,-500.0,0.00014873,2]
[360834914,1747059033957,-500.0,0.00014873,2]
[360834915,1747059033967,-500.0,0.00014873,2]
[360834916,1747059033977,-500.0,0.00014873,2]
[360834917,1747059033987,-500.0,0.00014873,2]
[360834918,1747059033997,-500.0,0.00014873,2]
[360834919,1747059034007,-586.14286062,0.00014873,2]
[360834920,1747059034016,-500.0,0.00014873,2]
[360834921,1747059034026,-503.56528475,0.00014873,2]
[360834922,1747059034035,-500.0,0.00014873,2]
[360834923,1747059034044,-263.61989077,0.00014873,2]
[360834924,1747059034054,-500.0,0.00014873,2]
[360834925,1747059034063,-500.0,0.00014873,2]
[360834926,1747059034072,-459.86847064,0.00014873,2]
[360834927,1747059034082,-500.0,0.00014873,2]
[360834928,1747059034091,-500.15342173,0.00014873,2]
[360834929,1747059034101,-500.0,0.00014873,2]
[360834930,1747059034110,-500.0,0.00014873,2]
[360834931,1747059034119,-501.44768991,0.00014873,2]
[360834932,1747059034129,-500.0,0.00014873,2]
[360834933,1747059034139,-500.0,0.00014873,2]
[360834934,1747059034148,-500.0,0.00014873,2]
[360834935,1747059034157,-500.0,0.00014873,2]
[360834936,1747059034166,-500.0,0.00014873,2]
[360834937,1747059034176,-504.3942579,0.00014873,2]
[360834938,1747059034186,-500.0,0.00014873,2]
[360834939,1747059034197,-500.0,0.00014873,2]
[360834940,1747059034206,-500.0,0.00014873,2]
[360834941,1747059034215,-500.0,0.00014873,2]
[360834942,1747059034224,-500.0,0.00014873,2]
[360834943,1747059034234,-500.98319267,0.00014873,2]
[360834944,1747059034243,-500.0,0.00014873,2]
[360834945,1747059034253,-554.28080023,0.00014873,2]
[360834946,1747059034263,-500.0,0.00014873,2]
[360834947,1747059034273,-151.0,0.00014873,2]
[360834948,1747059034282,-384.296127,0.00014873,2]
[360834949,1747059034292,-800.0,0.00014877,2]
[360834950,1747059034302,-543.0,0.00014878,2]
[360834951,1747059034311,-543.0,0.00014878,2]
[360834952,1747059034321,-269.49351866,0.00014878,2]
[360834953,1747059034330,-200.0,0.00014878,2]
[360834954,1747059034340,-320.0,0.00014878,2]
[360834955,1747059034349,-301.818,0.0001488,2]
[360834956,1747059034358,-151.0,0.00014888,2]
[360834957,1747059034368,-151.0,0.00014888,2]
[360834958,1747059034378,-384.296127,0.00014888,2]
[360834959,1747059034388,-800.0,0.00014888,2]
[360834960,1747059034397,-800.0,0.00014891,2]
[360834961,1747059034408,-1227315.68075409,0.00014897,2]
[360834962,1747059034419,-390.863393,0.00014897,2]
[360834963,1747059034428,-151.0,0.00014897,2]
[360834964,1747059034437,-151.0,0.00014897,2]
[360834965,1747059034447,-151.0,0.00014897,2]
[360834966,1747059034457,-151.0,0.00014897,2]
[360834967,1747059034466,-151.0,0.00014897,2]
[360834968,1747059034476,-151.0,0.00014897,2]
[360834969,1747059034485,-206.359752,0.00014897,2]
[360834970,1747059034495,-206.359752,0.00014897,2]
[360834971,1747059034505,-171.876993,0.00014897,2]
[360834972,1747059034514,-171.876993,0.00014897,2]
[360834973,1747059034524,-151.0,0.00014897,2]
[360834974,1747059034533,-151.0,0.00014897,2]
[360834975,1747059034542,-151.0,0.00014897,2]
[360834976,1747059034552,-384.296127,0.00014897,2]
[360834977,1747059034561,-320.0,0.00014897,2]
[360834978,1747059034570,-320.0,0.00014897,2]
[360834979,1747059034579,-320.0,0.00014897,2]
[360834980,1747059034588,-320.0,0.00014897,2]
[360834981,1747059034597,-320.0,0.00014897,2]
[360834982,1747059034606,-320.0,0.00014897,2]
[360834983,1747059034616,-320.0,0.00014897,2]
[360834984,1747059034625,-320.0,0.00014897,2]
[360834985,1747059034634,-320.0,0.00014897,2]
[360834986,1747059034643,-320.0,0.00014897,2]
[360834987,1747059034652,-320.0,0.00014897,2]
[360834988,1747059034661,-320.0,0.00014897,2]
[360834989,1747059034671,-320.0,0.00014897,2]
[360834990,1747059034680,-320.0,0.00014897,2]
[360834991,1747059034689,-320.0,0.00014897,2]
[360834992,1747059034702,-320.0,0.00014897,2]
[360834993,1747059034711,-320.0,0.00014897,2]
[360834994,1747059034721,-320.0,0.00014897,2]
[360834995,1747059034730,-166.0,0.00014897,2]
[360834996,1747059034740,-166.0,0.00014897,2]
[360834997,1747059034749,-166.0,0.00014897,2]
[360834998,1747059034758,-166.0,0.00014897,2]
[360834999,1747059034768,-172.0,0.00014897,2]
[360835000,1747059034777,-320.0,0.00014897,2]
[360835001,1747059034788,-320.0,0.00014897,2]
[360835002,1747059034798,-320.0,0.00014897,2]
[360835003,1747059034808,-320.0,0.00014897,2]
[360835004,1747059034817,-320.0,0.00014897,2]
[360835005,1747059034828,-320.0,0.00014897,2]
[360835006,1747059034838,-320.0,0.00014897,2]
[360835007,1747059034848,-320.0,0.00014897,2]
[360835008,1747059034858,-320.0,0.00014897,2]
[360835009,1747059034868,-320.0,0.00014897,2]
[360835010,1747059034878,-320.0,0.00014897,2]
[360835011,1747059034888,-320.0,0.00014897,2]
[360835012,1747059034898,-320.0,0.00014897,2]
[360835013,1747059034908,-320.0,0.00014897,2]
[360835014,1747059034917,-320.0,0.00014897,2]
[360835015,1747059034926,-320.0,0.00014897,2]
[360835016,1747059034936,-320.0,0.00014897,2]
[360835017,1747059034945,-320.0,0.00014897,2]
[360835018,1747059034959,-188.22545982,0.00014897,2]
[360835019,1747059034968,-170.4345262,0.00014898,2]
[360835020,1747059034978,-1490059.76502618,0.00014898,2]
[360835121,1747059038063,-320.0,0.00014848,2]
[360835123,1747059038073,-147.84332344,0.00014898,2]
[360835240,1747059040687,-0.00980937,0.00014898,2]
[360835241,1747059040717,-714.78080813,0.00014898,2]
[360835242,1747059040735,-541.89008161,0.00014898,2]
[360835262,1747059043987,-2799.03648679,0.00014898,2]
[360835263,1747059044018,-313367.25660314,0.00014898,2]
[360835294,1747059046346,-15807.48320935,0.00014898,2]
[360835342,1747059078533,-300.0,0.00014798,2]
[360835345,1747059094077,-167.16903248,0.0001385,2]
[360835346,1747059108513,-156.11634054,0.0001385,2]
[360835347,1747059314960,-426.05369454,0.00012,2]
[360835348,1747059321075,-173.94630546,0.00012,2]
[360835350,1747059600041,-179.23776153,0.00012,2]
[360835351,1747059604551,-200.57044813,0.00011999,2]
[360835352,1747059607589,-99.42955187,0.00011999,2]
[360835353,1747059607611,-19697.57044813,0.00012,2]
[360835354,1747059618557,-123.19179034,0.00012,2]
[360835355,1747059623061,-241.39302396,0.000125,2]
[360835356,1747059633533,-224.97153537,0.000125,2]
[360835359,1747059649017,-384.61593756,0.000125,2]
[360835360,1747059663425,-213.88931158,0.000125,2]
[360835361,1747059678485,-172.22137684,0.000125,2]
[360835362,1747059693546,-157.05194498,0.000125,2]
[360835363,1747059708435,-207.53286932,0.00012,5]
[360835364,1747059723434,-252.05480483,0.00012,5]
[360835365,1747059738489,-177.77434013,0.00012,5]
[360835366,1747059740375,-361.0,0.00012,5]
[360835367,1747059753476,-1.63798572,0.00012,5]
[360835368,1747059873099,-8775.0,0.000123,5]
[360835369,1747059873126,-300.0,0.00012305,2]
[360835370,1747059873154,-24839.0,0.00012306,2]
[360835371,1747059874601,-280.40092233,0.00011715,2]
[360835372,1747059888506,-245.55683349,0.00011715,2]
[360835373,1747059903614,-178.21986474,0.00011598,2]
[360835374,1747059919138,-165.48684912,0.00011598,2]
[360835375,1747059933460,-200.02633474,0.00011598,2]
[360835377,1747059948637,-282.19879271,0.00011598,2]
[360835379,1747059956812,-5251.27863989,0.00011598,2]
[360835380,1747059956836,-300.0,0.00011714,2]
[360835381,1747059956861,-1200.0,0.00011714,2]
[360835382,1747059956885,-300.0,0.00011714,2]
[360835383,1747059956906,-7544.72136011,0.00011715,2]
[360835508,1747060238247,-23.10799827,0.00011715,2]
[360835510,1747060238258,-250.0,0.00012141,2]
[360835512,1747060238268,-61.0,0.00012306,2]
[360835514,1747060238279,-28.82334678,0.00012499,2]
[360835521,1747060238353,-1171.17665322,0.00012499,2]
[360835523,1747060238363,-300.0,0.00012499,2]
[360835525,1747060238373,-8605.85686971,0.000125,2]
[360835527,1747060238388,-300.0,0.00012799,2]
[360835529,1747060238398,-10000.0,0.000128,5]
[360835530,1747060238407,-151.0,0.00012992,2]
[360835532,1747060238417,-500.0,0.00012999,2]
[360835534,1747060238426,-500.0,0.00012999,2]
[360835535,1747060238435,-500.0,0.00012999,2]
[360835537,1747060238445,-500.0,0.00012999,2]
[360835539,1747060238455,-545.55146179,0.00012999,2]
[360835541,1747060238464,-3000.0,0.00013,2]
[360835543,1747060238474,-28222.00963484,0.00013,2]
[360835553,1747060238571,-302.16338665,0.00013,2]
[360835558,1747060238608,-270.99997082,0.00013,2]
[360835562,1747060238642,-894.96813568,0.00013,2]
[360835564,1747060238652,-165.38893651,0.00013191,2]
[360835566,1747060238662,-400.732808,0.00013699,2]
[360835568,1747060238671,-420.0,0.00013714,2]
[360835570,1747060238681,-1680.0,0.00013749,2]
[360835572,1747060238690,-2000.0,0.000138,2]
[360835574,1747060238700,-250.0,0.00013807,2]
[360835576,1747060238709,-155.0,0.00013909,2]
[360835578,1747060238718,-319.89091438,0.00014025,2]
[360835580,1747060238728,-2000.0003146,0.00014053,2]
[360835582,1747060238737,-5566.000001,0.00014132,2]
[360835584,1747060238747,-319.89091432,0.00014135,2]
[360835586,1747060238756,-207.4,0.00014152,2]
[360835588,1747060238766,-500.0,0.00014153,2]
[360835590,1747060238776,-170.22797551,0.00014246,2]
[360835593,1747060238787,-149.66293881,0.00014246,2]
[360835595,1747060238797,-313.17394708,0.00014267,2]
[360835597,1747060238813,-255.88051422,0.00014267,2]
[360835600,1747060238824,-569.0544613,0.00014267,2]
[360835601,1747060238833,-569.0544613,0.00014267,2]
[360835604,1747060238843,-924.9946561,0.00014267,2]
[360835606,1747060238853,-392.49603956,0.00014278,2]
[360835673,1747060240726,-176.55842174,0.00014278,2]
[360835674,1747060240736,-319.89091432,0.00014356,2]
[360835675,1747060240745,-439.75819794,0.0001439,2]
[360835681,1747060240970,-60.24180206,0.0001439,2]
[360835682,1747060240980,-14.70775451,0.00014467,2]
[360835743,1747060246569,-305.18315981,0.00014467,2]
[360835744,1747060246579,-319.89091432,0.00014577,2]
[360835745,1747060246589,-319.89091432,0.00014688,2]
[360835746,1747060246599,-910.08459265,0.00014698,2]
[360835747,1747060246608,-157.9005868,0.000147,2]
[360835748,1747060246618,-175.678528,0.000147,2]
[360835749,1747060246627,-157.9005868,0.000147,2]
[360835750,1747060246640,-174.0061732,0.000147,2]
[360835751,1747060246650,-18.1645591,0.000147,2]
[360835752,1747060246755,-139.7360277,0.000147,2]
[360835753,1747060246764,-10.4322425,0.0001474,2]
[360835754,1747060246775,-631.4535548,0.0001474,2]
[360835755,1747060246785,-92.6035982,0.00014797,2]
[360835756,1747060246797,-407.3964018,0.00014797,2]
[360835757,1747060246807,-500.0,0.00014797,2]
[360835758,1747060246816,-500.0,0.00014797,2]
[360835759,1747060246825,-500.0,0.00014797,2]
[360835760,1747060246835,-500.0,0.00014797,2]
[360835761,1747060246844,-346.55967248,0.00014797,2]
[360835762,1747060246853,-500.0,0.00014797,2]
[360835763,1747060246865,-500.0,0.00014797,2]
[360835764,1747060246874,-500.0,0.00014797,2]
[360835765,1747060246888,-500.0,0.00014797,2]
[360835766,1747060246897,-349.26275463,0.00014797,2]
[360835767,1747060246908,-500.0,0.00014797,2]
[360835768,1747060246919,-550.0,0.00014797,2]
[360835769,1747060246929,-5530.96403721,0.00014798,2]
[360835770,1747060246938,-319.89091432,0.00014798,2]
[360835771,1747060246948,-175.678528,0.000148,2]
[360835772,1747060246957,-1137.8605838,0.000148,2]
[360835773,1747060246967,-157.9005868,0.000148,2]
[360835774,1747060246977,-2631.74858301,0.000148,3]
[360835775,1747060246988,-2201.2344434,0.00014823,2]
[360835776,1747060246998,-308.133,0.00014872,2]
[360835777,1747060247008,-500.0,0.00014873,2]
[360835778,1747060247019,-500.0,0.00014873,2]
[360835779,1747060247030,-649.51725662,0.00014873,2]
[360835780,1747060247041,-333.85323793,0.00014873,2]
[360835781,1747060247059,-166.14676207,0.00014873,2]
[360835782,1747060247069,-500.0,0.00014873,2]
[360835783,1747060247079,-500.0,0.00014873,2]
[360835784,1747060247089,-500.0,0.00014873,2]
[360835785,1747060247099,-500.0,0.00014873,2]
[360835786,1747060247110,-500.0,0.00014873,2]
[360835787,1747060247120,-500.0,0.00014873,2]
[360835788,1747060247130,-500.0,0.00014873,2]
[360835789,1747060247148,-509.77833502,0.00014873,2]
[360835790,1747060247157,-500.0,0.00014873,2]
[360835791,1747060247168,-500.0,0.00014873,2]
[360835792,1747060247177,-503.51089266,0.00014873,2]
[360835793,1747060247187,-500.0,0.00014873,2]
[360835794,1747060247196,-516.92021092,0.00014873,2]
[360835795,1747060247205,-500.0,0.00014873,2]
[360835796,1747060247215,-500.0,0.00014873,2]
[360835797,1747060247225,-500.0,0.00014873,2]
[360835798,1747060247235,-501.22934475,0.00014873,2]
[360835799,1747060247244,-500.0,0.00014873,2]
[360835800,1747060247254,-500.0,0.00014873,2]
[360835801,1747060247264,-500.0,0.00014873,2]
[360835802,1747060247274,-500.0,0.00014873,2]
[360835803,1747060247284,-500.0,0.00014873,2]
[360835804,1747060247294,-500.0,0.00014873,2]
[360835805,1747060247304,-200.99057389,0.00014873,2]
[360835806,1747060247314,-500.0,0.00014873,2]
[360835807,1747060247325,-500.0,0.00014873,2]
[360835808,1747060247335,-500.0,0.00014873,2]
[360835809,1747060247344,-500.0,0.00014873,2]
[360835810,1747060247355,-500.0,0.00014873,2]
[360835811,1747060247365,-500.0,0.00014873,2]
[360835812,1747060247375,-500.0,0.00014873,2]
[360835813,1747060247389,-500.0,0.00014873,2]
[360835814,1747060247400,-162.04733954,0.00014873,2]
[360835815,1747060247411,-36418.48066026,0.00014894,2]
[360835816,1747060247421,-11443.63,0.00014897,2]
[360835817,1747060247431,-160.0,0.00014897,2]
[360835818,1747060247440,-167202.74126886,0.00014898,2]
[360835839,1747060615324,-155.55298335,0.00013598,2]
[360835841,1747060622528,-155.0,0.00013598,2]
[360835855,1747060736449,-272.32968316,0.00013498,2]
[360835858,1747060741380,-200.30416869,0.00013498,2]
[360835861,1747060745056,-158.96548832,0.00013498,2]
[360835864,1747060748792,-233.25034662,0.00013498,2]
[360835867,1747060753274,-247.67034325,0.00013498,2]
[360835869,1747060758426,-200.30416869,0.00013398,2]
[360835870,1747060758455,-85.61065068,0.00013498,2]
[360835872,1747060764616,-160.7475224,0.00013363,2]
[360835876,1747060769661,-172.33196476,0.00013363,2]
[360835877,1747060772500,-154.33752524,0.00013363,2]
[360835878,1747060774405,-279.41849684,0.00013363,2]
[360835879,1747060774429,-16.88127504,0.00013498,2]
[360835882,1747060777452,-250.9450188,0.00013498,2]
[360835884,1747060780854,-222.68523567,0.00013363,2]
[360835887,1747060789020,-103.98425433,0.00013363,2]
[360835888,1747060789061,-149.20587738,0.00013498,2]
[360835890,1747060793083,-159.38416754,0.0001305,2]
[360835892,1747060798911,-337.11648367,0.00012919,2]
[360835896,1747060826668,-89.53168609,0.00012919,2]
[360835897,1747060826693,-106.31035674,0.0001305,2]
[360835899,1747060832220,-184.9123949,0.0001305,2]
[360835901,1747060834279,-135.42541812,0.0001305,2]
[360835902,1747060834303,-28.13620473,0.00013398,2]
[360835905,1747060863452,-172.16796396,0.00013264,2]
[360835906,1747060863478,-123.56443179,0.00013398,2]
[360835910,1747060870405,-48.60353217,0.00013398,2]
[360835912,1747060870429,-374.30124194,0.00013498,2]
[360836016,1747060900919,-282.19879271,0.00012697,2]
[360836024,1747060939113,-174.5003491,0.00012697,2]
[360836031,1747060968605,-156.69914181,0.00012697,2]
[360836033,1747060974617,-282.19879271,0.00012697,2]
[360836039,1747061006181,-156.69914181,0.00012697,2]
[360836042,1747061009648,-229.69784275,0.00012697,2]
[360836043,1747061014584,-151.52692452,0.00012697,2]
[360836048,1747061044072,-213.82455512,0.00012697,2]
[360836051,1747061047880,-212.33126262,0.00012697,2]
[360836055,1747061073489,-165.72350157,0.00012697,2]
[360836058,1747061079999,-189.06289489,0.0001257,2]
[360836061,1747061084742,-75.75367255,0.0001257,2]
[360836065,1747061124460,-157.53271131,0.00012597,2]
[360836068,1747061129866,-204.91866369,0.00012597,2]
[360836070,1747061133457,-198.82081551,0.00012597,2]
[360836071,1747061136688,-274.6360475,0.00012597,2]
[360836073,1747061141366,-293.18829893,0.00012597,2]
[360836078,1747061170125,-334.5497671,0.00012597,2]
[360836080,1747061173852,-297.62588647,0.00012597,2]
[360836086,1747061200426,-300.0,0.00012597,2]
[360836088,1747061206477,-291.83030868,0.00012213,2]
[360836095,1747061239854,-58.69638702,0.00012213,2]
[360836096,1747061239878,-171.2254441,0.00012597,2]
[360836098,1747061245441,-156.79811284,0.00012597,2]
[360836100,1747061253845,-29.01822556,0.00012597,2]
[360836101,1747061253872,-227.28349575,0.00012671,2]
[360836102,1747061253898,-227.17938539,0.00012671,2]
[360836105,1747061258592,-177.90104503,0.00012671,2]
[360836177,1747061432912,-1200.0,0.0001267,2]
[360836178,1747061432922,-94.91956958,0.00012671,2]
[360836179,1747061432931,-500.0,0.00012671,2]
[360836180,1747061432940,-606.1450001,0.00012671,2]
[360836181,1747061432949,-300.0,0.00012671,2]
[360836182,1747061432959,-300.0,0.00012671,2]
[360836183,1747061432969,-300.0,0.00012671,2]
[360836184,1747061432978,-300.0,0.00012671,2]
[360836185,1747061432986,-24900.0,0.00012672,2]
[360836186,1747061432995,-1470.91659978,0.00012697,2]
[360836187,1747061433005,-3004.92054526,0.00013498,2]
[360836188,1747061433015,-417.62408406,0.00013598,2]
[360836189,1747061433025,-213.19648316,0.00013598,2]
[360836190,1747061433035,-155.355,0.000136,2]
[360836191,1747061433044,-10613.46515701,0.00013695,2]
[360836362,1747061438690,-3735.0,0.00013695,2]
[360836363,1747061438714,-25615.68590851,0.00013695,2]
[360836364,1747061438724,-500.0,0.00013698,2]
[360836365,1747061438733,-500.0,0.00013698,2]
[360836366,1747061438743,-500.0,0.00013698,2]
[360836367,1747061438752,-500.0,0.00013698,2]
[360836368,1747061438762,-500.0,0.00013698,2]
[360836369,1747061438771,-500.0,0.00013698,2]
[360836370,1747061438781,-344.74961465,0.00013698,2]
[360836371,1747061438790,-500.0,0.00013698,2]
[360836372,1747061438799,-500.0,0.00013698,2]
[360836373,1747061438809,-500.0,0.00013698,2]
[360836374,1747061438819,-408.65630642,0.00013698,2]
[360836375,1747061438830,-500.0,0.00013698,2]
[360836376,1747061438839,-319.98591516,0.00013698,2]
[360836377,1747061438848,-380.696167,0.00013699,2]
[360836378,1747061438857,-500.0,0.00013699,2]
[360836379,1747061438866,-500.0,0.00013699,2]
[360836380,1747061438876,-500.0,0.00013699,2]
[360836381,1747061438885,-500.0,0.00013699,2]
[360836382,1747061438895,-450.0,0.00013699,2]
[360836383,1747061438903,-500.0,0.00013699,2]
[360836384,1747061438912,-500.0,0.00013699,2]
[360836385,1747061438921,-500.0,0.00013699,2]
[360836386,1747061438931,-500.0,0.00013699,2]
[360836387,1747061438940,-500.0,0.00013699,2]
[360836388,1747061438949,-500.0,0.00013699,2]
[360836389,1747061438958,-500.0,0.00013699,2]
[360836390,1747061438967,-500.0,0.00013699,2]
[360836391,1747061438976,-500.0,0.00013699,2]
[360836392,1747061438986,-500.0,0.00013699,2]
[360836393,1747061438996,-500.0,0.00013699,2]
[360836394,1747061439005,-500.0,0.00013699,2]
[360836395,1747061439014,-500.0,0.00013699,2]
[360836396,1747061439024,-500.0,0.00013699,2]
[360836397,1747061439033,-500.0,0.00013699,2]
[360836398,1747061439043,-500.0,0.00013699,2]
[360836399,1747061439052,-500.0,0.00013699,2]
[360836400,1747061439061,-500.0,0.00013699,2]
[360836401,1747061439070,-500.0,0.00013699,2]
[360836402,1747061439081,-500.0,0.00013699,2]
[360836403,1747061439090,-500.0,0.00013699,2]
[360836404,1747061439100,-500.0,0.00013699,2]
[360836405,1747061439109,-500.0,0.00013699,2]
[360836406,1747061439119,-500.0,0.00013699,2]
[360836407,1747061439128,-350.76386506,0.00013699,2]
[360836408,1747061439137,-500.0,0.00013699,2]
[360836409,1747061439146,-500.0,0.00013699,2]
[360836410,1747061439155,-500.0,0.00013699,2]
[360836411,1747061439164,-500.0,0.00013699,2]
[360836412,1747061439173,-500.0,0.00013699,2]
[360836413,1747061439182,-500.0,0.00013699,2]
[360836414,1747061439192,-500.0,0.00013699,2]
[360836415,1747061439201,-500.0,0.00013699,2]
[360836416,1747061439210,-500.0,0.00013699,2]
[360836417,1747061439219,-500.0,0.00013699,2]
[360836418,1747061439228,-500.0,0.00013699,2]
[360836419,1747061439237,-500.0,0.00013699,2]
[360836420,1747061439246,-500.0,0.00013699,2]
[360836421,1747061439263,-500.0,0.00013699,2]
[360836422,1747061439279,-500.0,0.00013699,2]
[360836423,1747061439288,-500.0,0.00013699,2]
[360836424,1747061439297,-500.0,0.00013699,2]
[360836425,1747061439307,-500.0,0.00013699,2]
[360836426,1747061439316,-381.415167,0.00013699,2]
[360836427,1747061439326,-500.0,0.00013699,2]
[360836428,1747061439338,-500.0,0.00013699,2]
[360836429,1747061439348,-500.0,0.00013699,2]
[360836430,1747061439358,-500.0,0.00013699,2]
[360836431,1747061439367,-500.0,0.00013699,2]
[360836432,1747061439474,-500.0,0.00013699,2]
[360836433,1747061439484,-500.0,0.00013699,2]
[360836434,1747061439494,-500.0,0.00013699,2]
[360836435,1747061439504,-500.0,0.00013699,2]
[360836436,1747061439514,-500.0,0.00013699,2]
[360836437,1747061439524,-500.0,0.00013699,2]
[360836438,1747061439534,-550.0,0.00013699,2]
[360836439,1747061439543,-500.0,0.00013699,2]
[360836440,1747061439553,-500.0,0.00013699,2]
[360836441,1747061439562,-350.0,0.00013699,2]
[360836442,1747061439572,-500.0,0.00013898,7]
[360836443,1747061439583,-500.0,0.00013898,7]
[360836444,1747061439592,-500.0,0.00013898,7]
[360836445,1747061439602,-500.0,0.00013898,7]
[360836446,1747061439612,-500.0,0.00013898,7]
[360836447,1747061439621,-500.0,0.00013898,7]
[360836448,1747061439631,-500.0,0.00013898,7]
[360836449,1747061439640,-500.0,0.00013898,7]
[360836450,1747061439650,-500.0,0.00013898,7]
[360836451,1747061439660,-500.0,0.00013898,7]
[360836452,1747061439670,-500.0,0.00013898,7]
[360836453,1747061439680,-582.85,0.00013898,7]
[360836454,1747061439690,-420.0,0.000139,2]
[360836455,1747061439701,-155.0,0.00013909,2]
[360836456,1747061439710,-1680.0,0.00013937,2]
[360836457,1747061439719,-201.60309396,0.00014,2]
[360836458,1747061439729,-155.0,0.00014152,2]
[360836459,1747061439738,-207.4,0.00014152,2]
[360836460,1747061439748,-500.0,0.0001439,2]
[360836461,1747061439758,-2715.5,0.0001439,2]
[360836462,1747061439767,-2715.5,0.0001439,2]
[360836463,1747061439777,-2715.5,0.0001439,2]
[360836464,1747061439787,-2715.5,0.0001439,2]
[360836465,1747061439797,-2715.5,0.0001439,2]